fUST/lending_fUST_20240502
["ID","MTS","AMOUNT","RATE_DAILY","PERIOD"]
[325226128,1714596673160,-1259.78,0.0005863,40]
[325226129,1714596673170,-1010.64541273,0.000587,60]
[325226130,1714596673179,-2692.10080689,0.00058875,120]
[325226131,1714596673188,-673.02520172,0.00058875,120]
[325226132,1714596673197,-841.28150215,0.00058875,120]
[325226133,1714596673206,-500.0,0.00058904,120]
[325226134,1714596673216,-585.01634232,0.00058904,120]
[325226135,1714596673225,-500.0,0.00058904,120]
[325226136,1714596673236,-605.36,0.00058904,120]
[325226137,1714596673245,-635.9,0.00058904,120]
[325226138,1714596673255,-500.0,0.00058904,120]
[325226139,1714596673265,-500.0,0.00058904,120]
[325226140,1714596673274,-905.44,0.00058904,120]
[325226141,1714596673284,-500.0,0.00058904,120]
[325226142,1714596673293,-1823.07,0.00058904,120]
[325226143,1714596673303,-500.0,0.00058904,120]
[325226144,1714596673312,-1540.18,0.00058904,120]
[325226145,1714596673321,-500.0,0.00058904,120]
[325226146,1714596673330,-747.85,0.00058904,120]
[325226147,1714596673340,-500.0,0.00058904,120]
[325226148,1714596673349,-500.0,0.00058904,120]
[325226149,1714596673358,-582.8,0.00058904,120]
[325226150,1714596673367,-500.0,0.00058904,120]
[325226151,1714596673376,-500.0,0.00058904,120]
[325226152,1714596673386,-783.32,0.00058904,120]
[325226153,1714596673395,-500.0,0.00058904,120]
[325226154,1714596673405,-660.58,0.00058904,120]
[325226155,1714596673414,-528.91,0.00058904,120]
[325226156,1714596673424,-651.79,0.00058904,120]
[325226157,1714596673434,-569.39,0.00058904,120]
[325226158,1714596673444,-533.64,0.00058904,120]
[325226159,1714596673454,-893.16,0.00058904,120]
[325226160,1714596673464,-500.0,0.00058904,120]
[325226161,1714596673474,-750.74,0.00058904,120]
[325226162,1714596673484,-500.0,0.00058904,120]
[325226163,1714596673495,-500.0,0.00058904,120]
[325226164,1714596673504,-918.03,0.00058904,120]
[325226165,1714596673514,-500.0,0.00058904,120]
[325226166,1714596673524,-500.0,0.00058904,120]
[325226167,1714596673534,-500.0,0.00058904,120]
[325226168,1714596673543,-151.0,0.00058904,120]
[325226169,1714596673553,-155.082013,0.00058904,120]
[325226170,1714596673563,-809.76,0.00058904,120]
[325226171,1714596673573,-155.082013,0.00058904,120]
[325226172,1714596673583,-816.25,0.00058904,120]
[325226173,1714596673593,-500.0,0.00058904,120]
[325226174,1714596673603,-151.0,0.00058904,120]
[325226175,1714596673612,-676.4,0.00058904,120]
[325226176,1714596673621,-500.0,0.00058904,120]
[325226177,1714596673632,-200.651343,0.00058904,120]
[325226178,1714596673642,-500.0,0.00058904,120]
[325226179,1714596673653,-725.28,0.00058904,120]
[325226180,1714596673664,-617.03,0.00058904,120]
[325226181,1714596673675,-193.802651,0.00058904,120]
[325226182,1714596673685,-193.802651,0.00058904,120]
[325226183,1714596673695,-500.0,0.00058904,120]
[325226184,1714596673705,-747.13,0.00058904,120]
[325226185,1714596673715,-807.48,0.00058904,120]
[325226186,1714596673724,-500.0,0.00058904,2]
[325226187,1714596673734,-880.55,0.00058904,120]
[325226188,1714596673745,-772.32,0.00058904,120]
[325226189,1714596673754,-1424.37,0.00058904,120]
[325226190,1714596673763,-902.14,0.00058904,120]
[325226191,1714596673773,-622.31,0.00058904,120]
[325226192,1714596673783,-908.32,0.00058904,120]
[325226193,1714596673793,-1274.48,0.00058904,120]
[325226194,1714596673803,-500.0,0.00058904,120]
[325226195,1714596673813,-500.0,0.00058904,120]
[325226196,1714596673822,-500.0,0.00058904,120]
[325226197,1714596673832,-505.13,0.00058904,120]
[325226198,1714596673841,-2748.45,0.00058904,120]
[325226199,1714596673851,-2748.72,0.00058904,120]
[325226200,1714596673862,-751.55,0.00058904,120]
[325226201,1714596673871,-500.0,0.00058904,120]
[325226202,1714596673880,-500.0,0.00058904,120]
[325226203,1714596673890,-500.0,0.00058904,120]
[325226204,1714596673900,-500.0,0.00058904,120]
[325226205,1714596673909,-891.08,0.00058904,120]
[325226206,1714596673918,-542.04,0.00058904,120]
[325226207,1714596673928,-500.0,0.00058904,120]
[325226208,1714596673937,-500.0,0.00058904,120]
[325226209,1714596673947,-718.42,0.00058904,120]
[325226210,1714596673958,-500.0,0.00058904,120]
[325226211,1714596673967,-876.77,0.00058904,120]
[325226212,1714596673977,-500.0,0.00058904,120]
[325226213,1714596673989,-500.0,0.00058904,120]
[325226214,1714596673999,-500.0,0.00058904,120]
[325226215,1714596674008,-500.0,0.00058904,120]
[325226216,1714596674018,-543.06,0.00058904,120]
[325226217,1714596674028,-597.36,0.00058904,120]
[325226218,1714596674037,-500.0,0.00058904,120]
[325226219,1714596674046,-847.59,0.00058904,120]
[325226220,1714596674056,-500.0,0.00058904,120]
[325226221,1714596674068,-552.66,0.00058904,120]
[325226222,1714596674078,-737.95,0.00058904,120]
[325226223,1714596674087,-500.0,0.00058904,120]
[325226224,1714596674097,-500.0,0.00058904,60]
[325226225,1714596674108,-735.13,0.00058904,120]
[325226226,1714596674118,-500.0,0.00058904,21]
[325226227,1714596674302,-624.7,0.00058904,120]
[325226228,1714596674314,-3241.16,0.00058904,120]
[325226229,1714596674324,-1071.63,0.00058904,120]
[325226230,1714596674334,-1139.17,0.00058904,120]
[325226231,1714596674345,-629.98,0.00058904,7]
[325226232,1714596674355,-513.73,0.00058904,120]
[325226233,1714596674366,-6873.87,0.00058904,120]
[325226234,1714596674377,-1040.84,0.00058904,120]
[325226235,1714596674388,-151.0,0.00058904,120]
[325226236,1714596674400,-614.531169,0.00058904,120]
[325226237,1714596674410,-1819.25,0.00058904,2]
[325226238,1714596674421,-614.53116837,0.00058904,120]
[325226239,1714596674434,-807.38,0.00058904,120]
[325226240,1714596674446,-684.4,0.00058904,120]
[325226241,1714596674457,-1563.93,0.00058904,120]
[325226242,1714596674469,-880.74,0.00058904,120]
[325226243,1714596674480,-500.0,0.00058904,120]
[325226244,1714596674495,-500.0,0.00058904,120]
[325226245,1714596674506,-500.0,0.00058904,120]
[325226246,1714596674518,-417.250857,0.00058904,120]
[325226247,1714596674530,-500.0,0.00058904,120]
[325226248,1714596674541,-905.71,0.00058904,120]
[325226249,1714596674552,-417.250863,0.00058904,120]
[325226250,1714596674563,-287.73985,0.00058904,120]
[325226251,1714596674574,-483.21985314,0.00058904,120]
[325226252,1714596674586,-287.73986,0.00058904,120]
[325226253,1714596674596,-1006.03,0.00058904,120]
[325226254,1714596674606,-990.64,0.00058904,120]
[325226255,1714596674616,-151.0,0.00058904,120]
[325226256,1714596674627,-529.69,0.00058904,120]
[325226257,1714596674637,-500.0,0.00058904,120]
[325226258,1714596674647,-500.0,0.00058904,120]
[325226259,1714596674658,-957.98,0.00058904,120]
[325226260,1714596674668,-399.351879,0.00058904,120]
[325226261,1714596674677,-399.351879,0.00058904,120]
[325226262,1714596674687,-957.45,0.00058904,120]
[325226263,1714596674697,-501.28,0.00058904,120]
[325226264,1714596674707,-500.0,0.00058904,120]
[325226265,1714596674717,-1396.65,0.00058904,30]
[325226266,1714596674727,-13131.9,0.00058904,120]
[325226267,1714596674740,-649.29,0.00058904,120]
[325226268,1714596674750,-500.0,0.00058904,120]
[325226269,1714596674761,-5415.88,0.00058904,120]
[325226270,1714596674771,-500.0,0.00058904,120]
[325226271,1714596674782,-524.46,0.00058904,120]
[325226272,1714596674792,-500.0,0.00058904,120]
[325226273,1714596674802,-1124.84,0.00058904,120]
[325226274,1714596674812,-725.84,0.00058904,120]
[325226275,1714596674822,-721.56,0.00058904,120]
[325226276,1714596674832,-2624.92,0.00058904,120]
[325226277,1714596674842,-773.09,0.00058904,120]
[325226278,1714596674852,-672.9,0.00058904,120]
[325226279,1714596674862,-671.69,0.00058904,120]
[325226280,1714596674872,-500.0,0.00058904,120]
[325226281,1714596674882,-904.57,0.00058904,120]
[325226282,1714596674891,-4150.6,0.00058904,120]
[325226283,1714596674901,-1064.37,0.00058904,120]
[325226284,1714596674911,-708.55,0.00058904,120]
[325226285,1714596674921,-500.0,0.00058904,120]
[325226286,1714596674930,-500.0,0.00058904,120]
[325226287,1714596674940,-2139.31,0.00058904,120]
[325226288,1714596674949,-747.59,0.00058904,120]
[325226289,1714596674966,-500.0,0.00058904,120]
[325226290,1714596674976,-1819.15,0.00058904,120]
[325226291,1714596674989,-893.59,0.00058904,120]
[325226292,1714596674999,-2548.41,0.00058904,120]
[325226293,1714596675007,-647.78,0.00058904,120]
[325226294,1714596675017,-972.62,0.00058904,120]
[325226295,1714596675026,-500.0,0.00058904,120]
[325226296,1714596675037,-953.99,0.00058904,120]
[325226297,1714596675046,-1932.29,0.00058904,120]
[325226298,1714596675056,-912.85,0.00058904,120]
[325226299,1714596675066,-631.99,0.00058904,120]
[325226300,1714596675076,-564.95,0.00058904,120]
[325226301,1714596675086,-170.270885,0.00058904,30]
[325226302,1714596675095,-771.7,0.00058904,120]
[325226303,1714596675105,-156.225468,0.00058904,120]
[325226304,1714596675114,-170.270881,0.00058904,30]
[325226305,1714596675124,-500.0,0.00058904,120]
[325226306,1714596675134,-156.225474,0.00058904,120]
[325226307,1714596675144,-165.149335,0.00058904,120]
[325226308,1714596675154,-500.0,0.00059,30]
[325226309,1714596675163,-1000.0,0.00059,59]
[325226310,1714596675173,-82093.11194282,0.00059,2]
[325226311,1714596675182,-151.0,0.00059,120]
[325226312,1714596675193,-155.082013,0.00059,120]
[325226313,1714596675202,-155.082011,0.00059,120]
[325226314,1714596675212,-151.0,0.00059,120]
[325226315,1714596675222,-193.802651,0.00059,120]
[325226316,1714596675232,-193.802654,0.00059,120]
[325226317,1714596675245,-151.0,0.00059,120]
[325226318,1714596675255,-253.329038,0.00059,120]
[325226319,1714596675265,-253.329028,0.00059,120]
[325226320,1714596675275,-151.0,0.00059,120]
[325226321,1714596675285,-151.0,0.00059,120]
[325226322,1714596675295,-220.364079,0.00059,120]
[325226323,1714596675305,-220.364083,0.00059,120]
[325226324,1714596675316,-945.484392,0.00059,120]
[325226325,1714596675326,-945.484401,0.00059,120]
[325226326,1714596675336,-175.798414,0.00059,120]
[325226327,1714596675346,-175.798407,0.00059,120]
[325226328,1714596675356,-262.519492,0.00059,120]
[325226329,1714596675367,-695.297328,0.00059,120]
[325226330,1714596675379,-262.51949617,0.00059,120]
[325226331,1714596675392,-695.297319,0.00059,120]
[325226332,1714596675403,-382.848254,0.00059,120]
[325226333,1714596675419,-382.848263,0.00059,120]
[325226334,1714596675435,-412.279401,0.00059,120]
[325226335,1714596675475,-412.279395,0.00059,120]
[325226336,1714596675506,-267.650158,0.00059034,2]
[325226337,1714596675532,-424.130374,0.00059034,2]
[325226338,1714596675550,-373.98646,0.00059034,2]
[325226339,1714596675568,-1259.78,0.00059178,45]
[325226340,1714596675592,-500.0,0.00059452,120]
[325226341,1714596675635,-500.0,0.00059452,120]
[325226342,1714596675663,-605.36,0.00059452,120]
[325226343,1714596675679,-635.9,0.00059452,120]
[325226344,1714596675725,-500.0,0.00059452,120]
[325226345,1714596675784,-500.0,0.00059452,120]
[325226346,1714596675820,-905.44,0.00059452,120]
[325226347,1714596675837,-500.00000024,0.00059452,120]
[325226348,1714596675854,-1823.07,0.00059452,120]
[325226349,1714596675893,-500.0,0.00059452,120]
[325226350,1714596675919,-1540.18,0.00059452,120]
[325226351,1714596675936,-441.606117,0.00059452,120]
[325226352,1714596675947,-747.85,0.00059452,120]
[325226353,1714596675965,-500.0,0.00059452,120]
[325226354,1714596675982,-500.0,0.00059452,120]
[325226355,1714596675999,-582.8,0.00059452,120]
[325226356,1714596676014,-500.0,0.00059452,120]
[325226357,1714596676028,-500.0,0.00059452,120]
[325226358,1714596676042,-783.32,0.00059452,120]
[325226359,1714596676056,-500.0,0.00059452,120]
[325226360,1714596676070,-660.58,0.00059452,120]
[325226361,1714596676082,-528.91,0.00059452,120]
[325226362,1714596676095,-651.79,0.00059452,120]
[325226363,1714596676109,-569.39,0.00059452,120]
[325226364,1714596676122,-533.64,0.00059452,120]
[325226365,1714596676135,-893.16,0.00059452,120]
[325226366,1714596676149,-500.0,0.00059452,120]
[325226367,1714596676163,-750.74,0.00059452,120]
[325226368,1714596676177,-500.0,0.00059452,120]
[325226369,1714596676189,-500.0,0.00059452,120]
[325226370,1714596676202,-918.03,0.00059452,120]
[325226371,1714596676215,-500.0,0.00059452,120]
[325226372,1714596676228,-500.0,0.00059452,120]
[325226373,1714596676245,-500.0,0.00059452,120]
[325226374,1714596676258,-809.76,0.00059452,120]
[325226375,1714596676271,-816.25,0.00059452,120]
[325226376,1714596676285,-500.0,0.00059452,120]
[325226377,1714596676298,-676.4,0.00059452,120]
[325226378,1714596676311,-500.0,0.00059452,120]
[325226379,1714596676324,-500.0,0.00059452,120]
[325226380,1714596676337,-725.28,0.00059452,120]
[325226381,1714596676351,-617.03,0.00059452,120]
[325226382,1714596676364,-500.0,0.00059452,120]
[325226383,1714596676377,-747.13,0.00059452,120]
[325226384,1714596676390,-807.48,0.00059452,120]
[325226385,1714596676403,-500.0,0.00059452,2]
[325226386,1714596676416,-880.55,0.00059452,120]
[325226387,1714596676429,-772.32,0.00059452,120]
[325226388,1714596676443,-1424.37,0.00059452,120]
[325226389,1714596676456,-902.14,0.00059452,120]
[325226390,1714596676468,-622.31,0.00059452,120]
[325226391,1714596676481,-908.32,0.00059452,120]
[325226392,1714596676496,-1274.48,0.00059452,120]
[325226393,1714596676508,-500.0,0.00059452,120]
[325226394,1714596676520,-500.0,0.00059452,120]
[325226395,1714596676532,-586.35995981,0.00059452,120]
[325226396,1714596676545,-505.13,0.00059452,120]
[325226397,1714596676558,-2748.45,0.00059452,120]
[325226398,1714596676570,-2748.72,0.00059452,120]
[325226399,1714596676582,-751.55,0.00059452,120]
[325226400,1714596676594,-500.0,0.00059452,120]
[325226401,1714596676607,-500.0,0.00059452,120]
[325226402,1714596676619,-500.0,0.00059452,120]
[325226403,1714596676632,-500.0,0.00059452,120]
[325226404,1714596676644,-891.08,0.00059452,120]
[325226405,1714596676656,-542.04,0.00059452,120]
[325226406,1714596676669,-500.0,0.00059452,120]
[325226407,1714596676683,-500.0,0.00059452,120]
[325226408,1714596676695,-718.42,0.00059452,120]
[325226409,1714596676708,-500.0,0.00059452,120]
[325226410,1714596676721,-876.77,0.00059452,120]
[325226411,1714596676734,-500.0,0.00059452,120]
[325226412,1714596676749,-500.0,0.00059452,120]
[325226413,1714596676762,-500.0,0.00059452,120]
[325226414,1714596676775,-500.0,0.00059452,120]
[325226415,1714596676787,-543.06,0.00059452,120]
[325226416,1714596676800,-597.36,0.00059452,120]
[325226417,1714596676812,-500.0,0.00059452,120]
[325226418,1714596676825,-847.59,0.00059452,120]
[325226419,1714596676837,-500.0,0.00059452,120]
[325226420,1714596676849,-552.66,0.00059452,120]
[325226421,1714596676862,-737.95,0.00059452,120]
[325226422,1714596676875,-500.0,0.00059452,120]
[325226423,1714596676887,-500.0,0.00059452,60]
[325226424,1714596676897,-735.13,0.00059452,120]
[325226425,1714596676906,-500.0,0.00059452,21]
[325226426,1714596676915,-624.7,0.00059452,120]
[325226427,1714596676925,-3241.16,0.00059452,120]
[325226428,1714596676934,-1071.63,0.00059452,120]
[325226429,1714596676943,-1139.17,0.00059452,120]
[325226430,1714596676952,-629.98,0.00059452,7]
[325226431,1714596676967,-513.73,0.00059452,120]
[325226432,1714596676977,-6873.87,0.00059452,120]
[325226433,1714596676987,-1040.84,0.00059452,120]
[325226434,1714596676997,-1819.25,0.00059452,2]
[325226435,1714596677007,-807.38,0.00059452,120]
[325226436,1714596677016,-684.4,0.00059452,120]
[325226437,1714596677026,-1563.93,0.00059452,120]
[325226438,1714596677035,-880.74,0.00059452,120]
[325226439,1714596677044,-500.0,0.00059452,120]
[325226440,1714596677055,-500.0,0.00059452,120]
[325226441,1714596677065,-249.55024286,0.00059452,120]
[325226442,1714596677074,-500.0,0.00059452,120]
[325226443,1714596677303,-905.71,0.00059452,120]
[325226444,1714596677329,-1006.03,0.00059452,120]
[325226445,1714596677346,-990.64,0.00059452,120]
[325226446,1714596677356,-529.69,0.00059452,120]
[325226447,1714596677366,-500.0,0.00059452,120]
[325226448,1714596677375,-591.7229864,0.00059452,120]
[325226449,1714596677384,-957.98,0.00059452,120]
[325226450,1714596677394,-957.45,0.00059452,120]
[325226451,1714596677403,-501.28,0.00059452,120]
[325226452,1714596677412,-500.0,0.00059452,120]
[325226453,1714596677421,-1396.65,0.00059452,30]
[325226454,1714596677432,-13131.9,0.00059452,120]
[325226455,1714596677442,-649.29,0.00059452,120]
[325226456,1714596677451,-500.0,0.00059452,120]
[325226457,1714596677461,-5415.88,0.00059452,120]
[325226458,1714596677471,-500.0,0.00059452,120]
[325226459,1714596677481,-524.46,0.00059452,120]
[325226460,1714596677491,-500.0,0.00059452,120]
[325226461,1714596677500,-1124.84,0.00059452,120]
[325226462,1714596677509,-725.84,0.00059452,120]
[325226463,1714596677518,-721.56,0.00059452,120]
[325226464,1714596677528,-2624.92,0.00059452,120]
[325226465,1714596677538,-773.09,0.00059452,120]
[325226466,1714596677546,-672.9,0.00059452,120]
[325226467,1714596677556,-671.69,0.00059452,120]
[325226468,1714596677566,-500.0,0.00059452,120]
[325226469,1714596677576,-904.57,0.00059452,120]
[325226470,1714596677586,-4150.6,0.00059452,120]
[325226471,1714596677595,-1064.37,0.00059452,120]
[325226472,1714596677605,-708.55,0.00059452,120]
[325226473,1714596677614,-500.0,0.00059452,120]
[325226474,1714596677624,-500.0,0.00059452,120]
[325226475,1714596677633,-2139.31,0.00059452,120]
[325226476,1714596677642,-747.59,0.00059452,120]
[325226477,1714596677652,-500.0,0.00059452,120]
[325226478,1714596677661,-1819.15,0.00059452,120]
[325226479,1714596677671,-893.59,0.00059452,120]
[325226480,1714596677680,-2548.41,0.00059452,120]
[325226481,1714596677690,-647.78,0.00059452,120]
[325226482,1714596677699,-972.62,0.00059452,120]
[325226483,1714596677710,-500.0,0.00059452,120]
[325226484,1714596677719,-953.99,0.00059452,120]
[325226485,1714596677729,-1932.29,0.00059452,120]
[325226486,1714596677740,-912.85,0.00059452,120]
[325226487,1714596677750,-631.99,0.00059452,120]
[325226488,1714596677759,-564.95,0.00059452,120]
[325226489,1714596677767,-771.7,0.00059452,120]
[325226490,1714596677778,-500.0,0.00059452,120]
[325226491,1714596677787,-152.70730249,0.0005953,120]
[325226492,1714596677796,-1259.78,0.00059726,50]
[325226493,1714596677805,-402.14425119,0.00059999,120]
[325226494,1714596677814,-500.0,0.00059999,120]
[325226495,1714596677823,-605.36,0.00059999,120]
[325226496,1714596677833,-635.9,0.00059999,120]
[325226497,1714596677842,-500.0,0.00059999,120]
[325226498,1714596677851,-500.0,0.00059999,120]
[325226499,1714596677861,-905.44,0.00059999,120]
[325226500,1714596677871,-1823.07,0.00059999,120]
[325226501,1714596677880,-500.0,0.00059999,120]
[325226502,1714596677889,-1540.18,0.00059999,120]
[325226503,1714596677899,-747.85,0.00059999,120]
[325226504,1714596677908,-500.0,0.00059999,120]
[325226505,1714596677917,-500.0,0.00059999,120]
[325226506,1714596677926,-582.8,0.00059999,120]
[325226507,1714596677935,-500.0,0.00059999,120]
[325226508,1714596677944,-783.32,0.00059999,120]
[325226509,1714596677954,-500.0,0.00059999,120]
[325226510,1714596677969,-660.58,0.00059999,120]
[325226511,1714596677979,-528.91,0.00059999,120]
[325226512,1714596677990,-651.79,0.00059999,120]
[325226513,1714596677999,-569.39,0.00059999,120]
[325226514,1714596678010,-533.64,0.00059999,120]
[325226515,1714596678019,-893.16,0.00059999,120]
[325226516,1714596678028,-500.0,0.00059999,120]
[325226517,1714596678038,-750.74,0.00059999,120]
[325226518,1714596678047,-500.0,0.00059999,120]
[325226519,1714596678056,-500.0,0.00059999,120]
[325226520,1714596678067,-918.03,0.00059999,120]
[325226521,1714596678076,-500.0,0.00059999,120]
[325226522,1714596678086,-559.52376033,0.00059999,120]
[325226523,1714596678095,-282.00806399,0.00059999,120]
[325226524,1714596678104,-809.76,0.00059999,120]
[325226525,1714596678113,-816.25,0.00059999,120]
[325226526,1714596678123,-500.0,0.00059999,120]
[325226527,1714596678132,-676.4,0.00059999,120]
[325226528,1714596678141,-500.0,0.00059999,120]
[325226529,1714596678150,-500.0,0.00059999,120]
[325226530,1714596678160,-725.28,0.00059999,120]
[325226531,1714596678170,-617.03,0.00059999,120]
[325226532,1714596678179,-500.0,0.00059999,120]
[325226533,1714596678188,-747.13,0.00059999,120]
[325226534,1714596678198,-807.48,0.00059999,120]
[325226535,1714596678207,-500.0,0.00059999,2]
[325226536,1714596678216,-880.55,0.00059999,120]
[325226537,1714596678226,-772.32,0.00059999,120]
[325226538,1714596678235,-1424.37,0.00059999,120]
[325226539,1714596678250,-902.14,0.00059999,120]
[325226540,1714596678259,-622.31,0.00059999,120]
[325226541,1714596678269,-908.32,0.00059999,120]
[325226542,1714596678278,-1274.48,0.00059999,120]
[325226543,1714596678288,-500.0,0.00059999,120]
[325226544,1714596678297,-158.70143915,0.00059999,120]
[325226545,1714596678306,-505.13,0.00059999,120]
[325226546,1714596678316,-2748.45,0.00059999,120]
[325226547,1714596678326,-2748.72,0.00059999,120]
[325226548,1714596678336,-751.55,0.00059999,120]
[325226549,1714596678346,-500.0,0.00059999,120]
[325226550,1714596678356,-464.74031653,0.00059999,120]
[325226551,1714596678365,-500.0,0.00059999,120]
[325226552,1714596678375,-500.0,0.00059999,120]
[325226553,1714596678384,-891.08,0.00059999,120]
[325226554,1714596678394,-542.04,0.00059999,120]
[325226555,1714596678403,-500.0,0.00059999,120]
[325226556,1714596678412,-500.0,0.00059999,120]
[325226557,1714596678422,-718.42,0.00059999,120]
[325226558,1714596678434,-500.0,0.00059999,120]
[325226559,1714596678443,-876.77,0.00059999,120]
[325226560,1714596678452,-500.0,0.00059999,120]
[325226561,1714596678462,-500.0,0.00059999,120]
[325226562,1714596678471,-500.0,0.00059999,120]
[325226563,1714596678481,-500.0,0.00059999,120]
[325226564,1714596678492,-543.06,0.00059999,120]
[325226565,1714596678502,-597.36,0.00059999,120]
[325226566,1714596678511,-500.0,0.00059999,120]
[325226567,1714596678521,-847.59,0.00059999,120]
[325226568,1714596678530,-500.0,0.00059999,120]
[325226569,1714596678540,-552.66,0.00059999,120]
[325226570,1714596678550,-737.95,0.00059999,120]
[325226571,1714596678559,-500.0,0.00059999,120]
[325226572,1714596678569,-500.0,0.00059999,60]
[325226573,1714596678579,-735.13,0.00059999,120]
[325226574,1714596678589,-500.0,0.00059999,21]
[325226575,1714596678598,-3241.16,0.00059999,120]
[325226576,1714596678608,-624.7,0.00059999,120]
[325226577,1714596678617,-1071.63,0.00059999,120]
[325226578,1714596678627,-1139.17,0.00059999,120]
[325226579,1714596678635,-629.98,0.00059999,7]
[325226580,1714596678645,-513.73,0.00059999,120]
[325226581,1714596678655,-6873.87,0.00059999,120]
[325226582,1714596678664,-1040.84,0.00059999,120]
[325226583,1714596678674,-1819.25,0.00059999,2]
[325226584,1714596678683,-807.38,0.00059999,120]
[325226585,1714596678692,-684.4,0.00059999,120]
[325226586,1714596678702,-1563.93,0.00059999,120]
[325226587,1714596678710,-880.74,0.00059999,120]
[325226588,1714596678719,-500.0,0.00059999,120]
[325226589,1714596678729,-500.0,0.00059999,120]
[325226590,1714596678739,-500.0,0.00059999,120]
[325226591,1714596678749,-905.71,0.00059999,120]
[325226592,1714596678759,-1006.03,0.00059999,120]
[325226593,1714596678769,-990.64,0.00059999,120]
[325226594,1714596678778,-529.69,0.00059999,120]
[325226595,1714596678787,-500.0,0.00059999,120]
[325226596,1714596678796,-957.98,0.00059999,120]
[325226597,1714596678804,-957.45,0.00059999,120]
[325226598,1714596678814,-501.28,0.00059999,120]
[325226599,1714596678823,-500.0,0.00059999,120]
[325226600,1714596678832,-1396.65,0.00059999,30]
[325226601,1714596678841,-13131.9,0.00059999,120]
[325226602,1714596678850,-649.29,0.00059999,120]
[325226603,1714596678859,-500.0,0.00059999,120]
[325226604,1714596678868,-5415.88,0.00059999,120]
[325226605,1714596678877,-524.46,0.00059999,120]
[325226606,1714596678887,-500.0,0.00059999,120]
[325226607,1714596678896,-500.0,0.00059999,120]
[325226608,1714596678905,-1124.84,0.00059999,120]
[325226609,1714596678914,-725.84,0.00059999,120]
[325226610,1714596678924,-721.56,0.00059999,120]
[325226611,1714596678933,-2624.92,0.00059999,120]
[325226612,1714596678943,-773.09,0.00059999,120]
[325226613,1714596678951,-672.9,0.00059999,120]
[325226614,1714596678963,-671.69,0.00059999,120]
[325226615,1714596678973,-500.0,0.00059999,120]
[325226616,1714596678982,-904.57,0.00059999,120]
[325226617,1714596678998,-4150.6,0.00059999,120]
[325226618,1714596679009,-1064.37,0.00059999,120]
[325226619,1714596679018,-708.55,0.00059999,120]
[325226620,1714596679028,-500.0,0.00059999,120]
[325226621,1714596679038,-500.0,0.00059999,120]
[325226622,1714596679048,-2139.31,0.00059999,120]
[325226623,1714596679058,-747.59,0.00059999,120]
[325226624,1714596679068,-500.0,0.00059999,120]
[325226625,1714596679077,-1819.15,0.00059999,120]
[325226626,1714596679086,-893.59,0.00059999,120]
[325226627,1714596679095,-2548.41,0.00059999,120]